Workbook

Sheet Blad1
B1: Private Sub Worksheet_Change(ByVal Target As Range)
B2: If Target.Address = "$B$15" Then
B3: Range("a9:h13").Sort [g9]
B4: end if
B5: End Sub
A9: a | C9: 0.05 | E9: 0.5 | F9: =C9*$B$15 -> 0.5 | G9: =SUM(E9,F9) -> 1 | H9: =$B$15-G9 -> 9
A10: b | B10: 0.05 | C10: =B10*1.21 -> 0.0605 | D10: 0.5 | E10: =D10*1.21 -> 0.605 | F10: =C10*$B$15 -> 0.605 | G10: =SUM(E10,F10) -> 1.21 | H10: =$B$15-G10 -> 8.79
A11: c | B11: 0.05 | C11: =B11*1.21 -> 0.0605 | D11: 0.55 | E11: =D11*1.21 -> 0.6655 | F11: =C11*$B$15 -> 0.605 | G11: =SUM(E11,F11) -> 1.2705 | H11: =$B$15-G11 -> 8.7295
A12: e | B12: 0.06 | C12: =B12*1.21 -> 0.0726 | D12: 0.85 | E12: =D12*1.21 -> 1.0285 | F12: =C12*$B$15 -> 0.726 | G12: =SUM(E12,F12) -> 1.7545 | H12: =$B$15-G12 -> 8.2455
A13: d | C13: 0.07 | E13: 1.15 | F13: =C13*$B$15 -> 0.7 | G13: =SUM(E13,F13) -> 1.85 | H13: =$B$15-G13 -> 8.15
B15: 10
